bitfinex/quotes_ETHUSD_20251206
["timestamp","ask_amount","ask_price","bid_price","bid_amount"]
[1765064125848,0.2988,3032.2,3032.1,0.4537]
[1765064126014,0.2988,3032.2,3031.9,6.59652362]
[1765064126627,0.2988,3032.2,3031.9,7.07372362]
[1765064126918,0.522,3032.3,3032.1,3.29804425]
[1765064128440,1.15340254,3032.2,3032.1,3.29804425]
[1765064129048,1.15340254,3032.2,3032.1,3.75174425]
[1765064131769,1.15340254,3032.2,3032.1,3.29804425]
[1765064131953,1.45220254,3032.2,3032.1,3.29804425]
[1765064133578,1.90430254,3032.2,3032.1,3.29804425]
[1765064133962,1.90430254,3032.2,3031.9,3.29825552]
[1765064134268,1.15340254,3032.0,3031.9,3.29825552]
[1765064134660,1.15340254,3032.0,3031.9,3.75195552]
[1765064136277,1.45220254,3032.0,3031.9,3.29825552]
[1765064136846,1.90430254,3032.0,3031.9,3.29825552]
[1765064137583,1.45220254,3032.0,3031.9,3.29825552]
[1765064139463,1.97420254,3032.0,3031.9,3.29825552]
[1765064143180,1.67540254,3032.0,3031.9,3.75195552]
[1765064143552,0.522,3032.0,3031.9,3.75195552]
[1765064144777,0.522,3032.1,3031.9,7.05021733]
[1765064144977,0.522,3032.1,3032.0,5.8767749]
[1765064145171,0.522,3032.1,3032.0,6.8076749]
[1765064148682,0.001,3032.5,3032.0,10.10582793]
[1765064148882,1.15340254,3032.2,3032.0,12.47308096]
[1765064149058,1.15340254,3032.2,3032.0,9.17492793]
[1765064151283,0.522,3032.3,3032.1,0.9829]
[1765064151606,0.001,3032.5,3032.2,0.4897]
[1765064151884,1.15340254,3032.4,3032.2,5.8767749]
[1765064152092,0.47,3032.3,3032.2,5.8767749]
[1765064152859,0.4577,3032.3,3032.2,5.8767749]
[1765064154088,0.8168,3032.5,3032.3,3.29782673]
[1765064154089,0.001,3032.5,3032.3,3.29782673]
[1765064154262,0.001,3032.5,3032.4,0.4781]
[1765064154584,0.522,3032.5,3032.4,0.9777]
[1765064154769,0.001,3032.5,3032.4,0.9777]
[1765064154967,0.9797,3032.5,3032.3,3.29782673]
[1765064155786,1.15340254,3032.4,3032.3,3.29782673]
[1765064157589,0.522,3032.5,3032.3,3.77592673]
[1765064158992,0.001,3033.5,3033.4,0.0466]
[1765064159180,0.001,3033.5,3033.4,1.77229411]
[1765064159359,0.001,3033.5,3033.4,2.27189411]
[1765064159914,0.001,3033.5,3033.4,2.4038409]
[1765064160964,0.001,3034.1,3033.9,0.405504]
[1765064161191,0.001,3034.1,3033.6,0.72559411]
[1765064161192,0.001,3034.1,3034.0,8.10206901]
[1765064162968,0.001,3034.1,3034.0,11.39804791]
[1765064164468,0.001,3034.1,3034.0,11.87144791]
[1765064166496,0.001,3034.1,3034.0,4.2474789]
[1765064166793,0.001,3034.1,3034.0,4.7470789]
[1765064167586,0.001,3034.1,3034.0,5.47267301]
[1765064168623,0.001,3034.1,3034.0,5.99467301]
[1765064172314,0.4734,3035.1,3034.0,5.99467301]
[1765064172315,0.4734,3035.1,3034.1,0.72559411]
[1765064172623,1.15340254,3035.2,3034.3,10.57122204]
[1765064172983,1.15340254,3035.2,3034.3,11.07082204]
[1765064173187,1.15340254,3035.2,3034.3,12.06009339]
[1765064173410,0.4587,3034.4,3034.3,4.28492438]
[1765064173619,0.7478,3034.4,3034.3,3.29565303]
[1765064173920,0.7478,3034.4,3033.9,0.98941164]
[1765064174214,0.0029,3034.2,3033.9,6.59217508]
[1765064178624,0.001,3034.4,3034.1,6.3548749]
[1765064178827,0.001,3034.4,3034.3,0.4781]
[1765064179130,0.4734,3034.3,3034.2,3.29576165]
[1765064179300,0.7469,3034.3,3034.2,3.29576165]
[1765064181531,0.7469,3034.3,3034.1,3.29587027]
[1765064181732,1.64200254,3034.2,3034.1,3.29587027]
[1765064181899,1.90050254,3034.2,3034.1,3.29587027]
[1765064182730,1.90050254,3034.2,3034.0,9.16302864]
[1765064183024,0.4912,3034.1,3034.0,9.16302864]
[1765064183231,0.4912,3034.1,3034.0,3.29596783]
[1765064183629,0.4912,3034.1,3033.8,5.86706081]
[1765064183832,1.58670254,3033.9,3033.7,3.29627347]
[1765064184126,1.79423279,3033.9,3033.7,3.29627347]
[1765064184329,0.4921,3033.8,3033.7,3.29627347]
[1765064184629,0.0035,3033.8,3033.7,9.16336565]
[1765064185035,0.4921,3033.8,3033.7,3.29630484]
[1765064185833,1.64550254,3033.8,3033.6,3.2964135]
[1765064186130,0.7455,3033.7,3033.4,3.29660706]
[1765064186431,1.41030254,3033.5,3033.2,3.29681092]
[1765064186608,1.41030254,3033.3,3033.2,3.29681092]
[1765064187014,1.89660254,3033.3,3033.2,3.29681092]
[1765064187406,1.89660254,3033.3,3032.8,5.86706081]
[1765064187729,1.15340254,3033.1,3032.9,3.29717432]
[1765064188232,0.7455,3033.0,3032.9,3.29717432]
[1765064188436,0.2569,3033.0,3032.9,3.29717432]
[1765064190429,0.7432,3033.0,3032.9,3.29717432]
[1765064192457,1.2652,3033.0,3032.9,3.29717432]
[1765064194440,0.7789,3033.0,3032.9,3.29717432]
[1765064199851,1.2652,3033.0,3032.7,3.2973696]
[1765064200053,0.4886,3032.9,3032.8,3.29723639]
[1765064200255,0.6838,3032.9,3032.8,3.29723639]
[1765064200461,0.9275,3032.9,3032.6,0.002]
[1765064200696,0.0024,3032.7,3032.6,0.002]
[1765064200956,0.491,3032.7,3032.6,0.002]
[1765064201846,0.67496025,3032.7,3032.6,0.002]
[1765064203040,1.82836279,3032.7,3032.6,0.002]
[1765064205391,1.34860254,3032.9,3032.6,0.4724]
[1765064205555,1.15340254,3033.1,3032.8,6.33746081]
[1765064205751,0.521,3033.0,3032.9,0.4704]
[1765064205967,0.521,3033.0,3032.6,0.4638]
[1765064206172,1.15340254,3033.5,3032.9,0.4704]
[1765064206375,0.522,3033.4,3032.9,0.4704]
[1765064206761,1.0106,3033.4,3032.9,0.9322]
[1765064206966,1.0106,3033.4,3033.1,5.86706081]
[1765064207478,0.4886,3033.4,3033.1,12.46097461]
[1765064207662,1.15340254,3033.2,3033.1,9.16401771]
[1765064208063,1.15340254,3033.2,3033.1,9.63441771]
[1765064208587,1.15340254,3033.2,3033.1,10.09621771]
[1765064210192,1.15340254,3033.5,3033.1,9.63441771]
[1765064210358,1.15340254,3033.3,3033.2,0.4902]
[1765064211386,0.522,3033.4,3033.3,3.29673952]
[1765064211688,0.522,3033.4,3033.3,10.11780033]
[1765064212083,1.15340254,3033.8,3033.3,13.41453985]
[1765064212292,1.67540254,3033.6,3033.4,0.4638]
[1765064212791,1.67540254,3033.6,3033.5,0.4902]
[1765064213591,1.67540254,3033.6,3033.5,9.65378297]
[1765064214996,2.41680254,3033.6,3033.5,5.86706081]
[1765064215287,2.41680254,3033.6,3033.4,3.29658857]
[1765064215590,0.7413,3033.5,3033.4,3.29658857]
[1765064218197,0.467,3033.5,3033.4,3.29658857]
[1765064219991,0.7413,3033.5,3033.1,5.86706081]
[1765064220165,1.15340254,3033.2,3033.1,9.16401771]
[1765064220694,1.15340254,3033.4,3033.1,13.40987461]
[1765064220892,1.15340254,3033.8,3033.3,6.32336081]
[1765064221195,1.15340254,3033.8,3033.7,6.32336081]
[1765064221595,0.521,3033.9,3033.7,6.32336081]
[1765064221778,1.15340254,3034.2,3033.8,0.9489]
[1765064221971,0.522,3034.1,3034.0,3.2959789]
[1765064222485,0.522,3034.1,3034.0,3.7522789]
[1765064222993,0.7713,3034.1,3033.8,3.29609265]
[1765064223232,1.40020254,3033.9,3033.8,3.29609265]
[1765064223495,1.15340254,3033.9,3033.8,3.29609265]
[1765064223707,1.15340254,3033.9,3033.8,3.75239265]
[1765064223890,0.522,3034.1,3034.0,3.2959789]
[1765064224095,0.522,3034.1,3034.0,6.32336081]
[1765064224469,1.15440254,3034.4,3034.0,6.32336081]
[1765064224671,0.523,3034.4,3034.3,6.32336081]
[1765064224910,0.523,3034.4,3034.3,6.81596081]
[1765064225077,0.001,3034.4,3034.3,6.81596081]
[1765064225606,0.001,3034.4,3034.3,7.33357763]
[1765064225782,0.001,3034.4,3034.3,6.81596081]
[1765064225983,0.001,3034.4,3034.3,10.11161384]
[1765064226501,0.001,3034.4,3034.3,4.24455303]
[1765064232998,0.001,3034.4,3034.3,5.89665114]
[1765064233298,0.4644,3035.3,3034.6,7.6220867]
[1765064233501,0.2523,3034.7,3034.4,0.72559411]
[1765064234898,0.6603,3034.9,3034.7,3.29521863]
[1765064235290,0.1959,3034.9,3034.7,3.29521863]
[1765064235603,0.4644,3035.1,3034.7,6.59043726]
[1765064236404,0.2523,3034.8,3034.7,3.29521863]
[1765064237406,0.2523,3034.8,3034.6,3.29532722]
[1765064238577,1.62240254,3034.7,3034.2,3.29575242]
[1765064238799,0.0071,3034.3,3034.2,3.29575242]
[1765064239100,1.15340254,3034.5,3034.2,3.29575242]
[1765064239307,1.15340254,3034.5,3034.2,6.59151407]
[1765064239803,1.40570254,3034.3,3034.0,6.59185416]
[1765064240003,0.0046,3034.1,3034.0,3.29587526]
[1765064240394,1.15340254,3034.3,3034.0,7.07705416]
[1765064240706,1.67440254,3034.3,3034.0,7.54195416]
[1765064241105,1.67440254,3034.3,3034.0,7.07705416]
[1765064241807,1.60930254,3034.5,3034.0,7.07705416]
[1765064242021,1.67440254,3034.5,3034.2,0.4852]
[1765064242187,1.67440254,3034.5,3034.0,6.59185416]
[1765064242188,1.15340254,3034.3,3034.0,6.59185416]
[1765064245087,1.15340254,3034.6,3033.9,6.59217508]
[1765064245292,0.2607,3034.1,3033.9,6.59217508]
[1765064245923,1.15340254,3034.4,3033.9,6.59217508]
[1765064246118,1.15340254,3034.2,3033.9,6.59217508]
[1765064246720,1.15340254,3034.2,3033.8,6.59235598]
[1765064246891,1.15340254,3034.2,3033.8,7.05725598]
[1765064247092,1.15340254,3034.2,3034.1,0.5]
[1765064247508,1.41410254,3034.2,3034.1,0.5]
[1765064248126,0.2607,3034.2,3034.1,0.5]
[1765064248602,1.60930254,3034.6,3034.1,6.85019354]
[1765064248803,1.15340254,3034.4,3034.2,3.29576165]
[1765064257428,1.15340254,3034.6,3034.2,6.5915233]
[1765064257720,1.15340254,3034.4,3034.2,6.5915233]
[1765064258624,1.15340254,3034.8,3034.3,0.9501]
[1765064258793,1.15340254,3034.6,3034.3,0.4649]
[1765064259309,1.15340254,3034.6,3034.4,5.86499354]
[1765064260319,1.15340254,3034.6,3034.5,0.4852]
[1765064260822,0.521,3034.9,3034.5,4.24553582]
[1765064261120,0.521,3034.9,3034.7,5.86499354]
[1765064261492,1.15340254,3034.8,3034.7,5.86499354]
[1765064262294,1.15340254,3034.8,3034.7,6.35019354]
[1765064263629,1.15340254,3034.8,3034.7,9.64541217]
[1765064263801,1.41490254,3034.8,3034.7,9.16021217]
[1765064271949,1.15340254,3034.8,3034.7,9.61781217]
[1765064272441,1.15340254,3034.8,3034.7,9.16021217]
[1765064272618,1.41680254,3034.8,3034.7,9.16021217]
[1765064273031,1.41680254,3034.8,3034.5,3.29543582]
[1765064273206,1.15810254,3034.6,3033.8,5.86499354]
[1765064273511,1.15340254,3034.2,3033.9,3.29608754]
[1765064274329,1.64940254,3034.2,3033.9,3.29608754]
[1765064275214,1.64940254,3034.2,3033.9,6.59217508]
[1765064275430,1.15340254,3034.2,3033.9,7.05417508]
[1765064277642,1.15340254,3034.2,3033.9,6.59217508]
[1765064278519,1.64940254,3034.2,3033.9,6.59217508]
[1765064279444,1.15340254,3034.2,3033.9,6.59217508]
[1765064281136,1.64940254,3034.2,3033.9,6.59217508]
[1765064281438,1.64940254,3034.2,3033.8,3.29614802]
[1765064281439,1.38840254,3034.0,3033.8,3.29614802]
[1765064281738,0.1867,3033.9,3033.4,6.59326168]
[1765064281942,0.2467,3033.6,3033.4,6.59326168]
[1765064282249,0.521,3033.7,3033.4,7.05526168]
[1765064282445,4.44873386,3034.6,3033.8,0.4863]
[1765064282446,1.15340254,3034.6,3033.8,0.4863]
[1765064282742,0.521,3034.3,3034.2,5.86499354]
[1765064283524,0.77,3034.3,3034.2,5.86499354]
[1765064285425,0.77,3034.3,3034.2,9.16075519]
[1765064287148,0.521,3034.3,3034.2,9.16075519]
[1765064288043,0.521,3034.3,3034.2,9.64705519]
[1765064291036,0.521,3034.3,3034.2,10.10905519]
[1765064291718,1.67440254,3034.5,3034.2,13.40481684]
[1765064292253,1.67440254,3034.5,3034.4,0.4863]
[1765064292550,1.67440254,3034.5,3034.4,3.78184442]
[1765064294346,0.521,3034.5,3034.4,4.24384442]
[1765064294561,0.521,3034.5,3034.4,3.78184442]
[1765064295268,1.83120254,3034.9,3034.4,7.53938884]
[1765064295269,1.15340254,3034.9,3034.4,7.53938884]
[1765064295463,1.15340254,3034.9,3034.6,6.35129354]
[1765064295618,1.67440254,3034.9,3034.6,6.35129354]
[1765064295817,1.67440254,3034.9,3034.6,6.81329354]
[1765064296567,1.67440254,3034.9,3034.7,3.29521863]
[1765064296722,2.17040254,3034.9,3034.7,3.29521863]
[1765064296922,0.249,3034.8,3034.7,3.29521863]
[1765064298056,0.9268,3034.8,3034.6,3.29532019]
[1765064298299,1.15340254,3034.7,3034.6,3.29532019]
[1765064298624,1.15340254,3034.9,3034.6,3.78162019]
[1765064298836,0.521,3034.8,3034.7,5.86499354]
[1765064299555,0.77,3034.8,3034.7,5.86499354]
[1765064300359,0.77,3034.8,3034.7,5.86331544]
[1765064301655,0.77,3034.8,3034.7,9.15853407]
[1765064306365,1.15340254,3035.3,3034.7,9.15853407]
[1765064306366,1.61390254,3035.3,3034.7,10.08753407]
[1765064306652,1.15340254,3034.9,3034.7,3.75551863]
[1765064307031,1.15340254,3034.9,3034.8,0.4603]
[1765064307855,1.15340254,3034.9,3034.8,6.32361544]
[1765064308563,1.15340254,3035.1,3034.8,9.61863677]
[1765064308862,1.61390254,3035.1,3035.0,5.86331544]
[1765064309239,1.89800254,3035.1,3035.0,5.86331544]
[1765064311557,2.29642785,3035.1,3034.0,0.72559411]
[1765064311735,1.15340254,3034.5,3034.3,3.29558828]
[1765064311935,1.67440254,3034.5,3034.4,5.86331544]
[1765064312464,1.95490254,3034.5,3034.4,5.86331544]
[1765064312967,2.41360254,3034.5,3034.1,3.29585071]
[1765064313289,2.41360254,3034.5,3034.0,3.29596781]
[1765064313290,1.15340254,3034.2,3034.0,3.29596781]
[1765064313473,1.15340254,3034.2,3033.9,0.4687]
[1765064313648,1.15340254,3034.2,3034.1,0.4603]
[1765064314334,1.15340254,3034.2,3034.1,6.32361544]
[1765064314739,1.89260254,3034.2,3034.1,5.86331544]
[1765064315669,1.89260254,3034.2,3034.1,9.15918571]
[1765064317394,1.89260254,3034.2,3034.1,3.29587027]
[1765064318066,1.89260254,3034.2,3034.1,5.86331544]
[1765064319185,1.43390254,3034.2,3034.1,5.86331544]
[1765064320171,1.43390254,3034.2,3034.1,9.15918571]
[1765064320575,0.4587,3034.4,3034.1,12.91535598]
[1765064320804,0.4587,3034.4,3034.3,5.86331544]
[1765064321472,0.521,3034.5,3034.3,6.79231544]
[1765064321678,0.521,3034.5,3034.4,0.4603]
[1765064321994,1.67440254,3034.7,3034.4,0.929]
[1765064322179,1.67440254,3034.7,3034.6,5.86331544]
[1765064322352,0.521,3034.7,3034.6,9.61894266]
[1765064322553,0.8015,3034.7,3034.6,9.15864266]
[1765064323164,0.521,3034.7,3034.6,9.15864266]
[1765064323366,0.521,3034.7,3034.6,9.61894266]
[1765064323566,0.521,3034.7,3034.6,10.08764266]
[1765064327394,0.521,3034.7,3034.6,9.61894266]
[1765064329789,0.521,3034.7,3034.6,3.75562722]
[1765064329992,0.521,3034.7,3034.6,9.61894266]
[1765064332194,0.521,3034.7,3034.6,10.07744266]
[1765064333157,1.15340254,3035.3,3034.6,10.07744266]
[1765064333158,1.83980254,3035.5,3034.6,19.25118532]
[1765064333360,1.15340254,3035.1,3034.9,5.86331544]
[1765064334694,1.15340254,3035.1,3035.0,3.76729291]
[1765064335563,0.521,3035.3,3035.0,7.53578582]
[1765064335760,0.521,3035.3,3035.2,6.33571544]
[1765064337070,0.001,3035.4,3035.2,16.46109297]
[1765064337270,0.001,3035.4,3035.3,1.43111682]
[1765064338388,0.001,3035.4,3035.3,0.946]
[1765064338895,0.001,3035.4,3035.3,4.96616136]
[1765064340621,0.001,3035.5,3035.3,10.8294768]
[1765064340912,0.001,3035.5,3035.4,1.67159411]
[1765064341077,0.001,3035.5,3035.4,4.96605283]
[1765064341483,0.001,3035.5,3035.4,10.82936827]
[1765064342099,0.001,3035.5,3035.4,4.96605283]
[1765064342301,0.001,3035.5,3035.4,10.82936827]
[1765064344387,0.001,3035.5,3035.4,11.32936827]
[1765064346991,0.001,3035.5,3035.4,5.46605283]
[1765064347194,0.001,3035.5,3035.4,11.32936827]
[1765064350510,0.001,3036.0,3035.5,0.72559411]
[1765064350688,0.001,3036.0,3035.7,12.92462499]
[1765064351182,0.001,3036.0,3035.7,13.39822499]
[1765064352510,0.001,3036.0,3035.7,16.69235813]
[1765064352886,1e-08,3036.3,3036.2,0.6546]
[1765064353086,1e-08,3036.3,3036.2,6.99151544]
[1765064353284,1e-08,3036.3,3036.2,6.51791544]
[1765064353481,1e-08,3036.3,3036.2,6.99151544]
[1765064354178,0.76800001,3036.3,3035.7,6.58826628]
[1765064354514,1.15340254,3036.0,3035.8,3.29398952]
[1765064354717,0.9511,3035.9,3035.6,5.86331544]
[1765064355013,0.2806,3035.7,3035.6,3.29424166]
[1765064355503,0.768,3035.7,3035.6,3.29424166]
[1765064355819,0.768,3035.7,3035.5,3.29427753]
[1765064356018,1.64290254,3035.6,3035.5,3.29427753]
[1765064356217,1.92350254,3035.6,3035.5,3.29427753]
[1765064356419,1.92350254,3035.6,3035.5,9.15759297]
[1765064359024,1.43400254,3035.6,3035.5,9.15759297]
[1765064359201,0.521,3036.1,3035.5,19.26125859]
[1765064359513,1.15340254,3036.0,3035.8,5.86331544]
[1765064359717,1.15340254,3036.0,3035.5,10.82897789]
[1765064360289,1.15340254,3036.0,3035.5,10.35537789]
[1765064360491,1.15340254,3036.0,3035.9,5.86331544]
[1765064361222,1.15340254,3036.0,3035.9,9.15723157]
[1765064361223,1.44870254,3036.0,3035.9,9.15723157]
[1765064362410,1.44870254,3036.0,3035.9,9.15228586]
[1765064363113,1.92160254,3036.0,3035.9,9.15228586]
[1765064364223,0.7682,3036.0,3035.9,9.15228586]
[1765064364421,0.2953,3036.0,3035.9,9.15228586]
[1765064365210,0.7682,3036.0,3035.9,9.15228586]
[1765064367519,0.2953,3036.0,3035.9,9.15228586]
[1765064368218,1e-08,3036.3,3035.9,12.91910199]
[1765064368425,1.15340254,3036.2,3035.9,12.91910199]
[1765064370315,1.62810254,3036.2,3035.9,12.91910199]
[1765064372224,1e-08,3036.3,3036.1,3.96099915]
[1765064372521,1e-08,3036.3,3036.2,5.85836973]
[1765064374336,1e-08,3036.3,3036.2,9.1519604]
[1765064374636,1e-08,3036.3,3036.2,10.1017604]
[1765064378430,1e-08,3036.3,3036.2,11.0904058]
[1765064379138,1e-08,3036.3,3036.2,10.1017604]
[1765064380452,1e-08,3036.3,3036.2,9.6248604]
[1765064380624,0.76820001,3036.3,3036.2,9.1519604]
[1765064381443,0.76820001,3036.3,3035.7,5.48541451]
[1765064381444,0.76820001,3036.3,3036.1,3.29368358]
[1765064381640,1.62810254,3036.2,3035.9,5.85836973]
[1765064381935,1.44870254,3036.0,3035.9,9.15228586]
[1765064382332,1.92160254,3036.0,3035.9,9.15228586]
[1765064384258,1.92160254,3036.0,3035.3,0.98894524]
[1765064384436,1.15340254,3035.8,3035.7,3.29413314]
[1765064384655,1.91730254,3035.8,3035.7,3.29413314]
[1765064385345,1.91730254,3035.8,3035.6,9.1526015]
[1765064385569,0.4823,3035.7,3035.6,9.1526015]
[1765064386472,0.4823,3035.7,3035.4,3.29443161]
[1765064386672,1.67440254,3035.8,3035.1,0.98902348]
[1765064386673,0.521,3035.8,3035.6,7.06138332]
[1765064387260,0.2939,3035.7,3035.6,3.76714166]
[1765064387467,0.2939,3035.7,3035.6,3.29424166]
[1765064392879,0.7668,3035.7,3035.6,3.29424166]
[1765064393182,0.2939,3035.7,3035.6,3.29424166]
[1765064402309,0.7668,3035.7,3035.5,3.29430164]
[1765064402473,1.15810254,3035.6,3035.5,3.29430164]
[1765064402672,1.64360254,3035.6,3035.3,6.58913286]
[1765064403003,1.43190254,3035.4,3035.3,3.29456561]
[1765064403604,0.2785,3035.4,3035.3,3.29456561]
[1765064404499,1.15340254,3035.6,3035.3,6.58913286]
[1765064404663,1.63890254,3035.6,3035.3,6.58913286]
[1765064406196,1.15340254,3035.6,3035.3,6.58913286]
[1765064406380,1.15340254,3035.6,3035.5,5.85836973]
[1765064406895,1.43660254,3035.6,3035.5,5.85836973]
[1765064408076,0.1824,3035.9,3035.5,12.93197009]
[1765064408272,2.15990254,3035.8,3035.5,12.93197009]
[1765064408803,1.43660254,3035.6,3035.5,9.15271991]
[1765064409582,1.92010254,3035.6,3035.5,9.15271991]
[1765064410268,1.92010254,3035.6,3035.2,5.85836973]
[1765064410474,1.15340254,3035.4,3035.2,3.29463514]
[1765064410689,0.2832,3035.3,3035.2,3.29463514]
[1765064410926,0.7667,3035.3,3035.2,3.29463514]
[1765064412203,0.7667,3035.3,3035.0,3.29488665]
[1765064412380,1.15340254,3035.1,3035.0,3.29488665]
[1765064412586,1.43660254,3035.1,3035.0,3.29488665]
[1765064413470,1.92010254,3035.1,3035.0,3.29488665]
[1765064414169,1.92010254,3035.1,3034.8,6.59011466]
[1765064414404,1.92010254,3035.1,3034.8,3.29500461]
[1765064414405,0.4711,3034.9,3034.8,3.29500461]
[1765064414603,1.80520254,3034.9,3034.8,3.29500461]
[1765064414900,1.62450254,3034.9,3034.8,3.29500461]
[1765064424413,1.62450254,3034.9,3034.8,9.15747477]
[1765064426025,2.46703305,3034.9,3034.6,0.002]
[1765064426320,1.15640254,3034.7,3034.6,0.002]
[1765064426833,1.63290254,3034.7,3034.6,0.002]
[1765064427997,5.33362517,3034.7,3034.6,0.002]
[1765064428195,6.15081988,3034.7,3034.6,0.002]
[1765064428446,6.87641399,3034.7,3034.6,0.002]
[1765064433854,14.68561799,3034.7,3034.6,0.002]
[1765064434173,0.3905,3034.1,3033.9,0.002]
[1765064434455,1.032404,3034.0,3033.9,0.002]
[1765064434655,5.05397701,3034.0,3033.9,0.002]
[1765064434831,6.69504751,3034.0,3033.9,0.002]
[1765064436023,1.89606461,3034.0,3033.9,0.002]
[1765064436224,5.12497301,3034.0,3033.9,0.002]
[1765064440442,1.25249411,3034.0,3033.9,0.002]
[1765064440643,1.15340254,3034.1,3033.9,6.34407016]
[1765064440845,1.15340254,3034.1,3034.0,0.4796]
[1765064441047,1.67440254,3034.1,3034.0,0.9446]
[1765064442040,1.67440254,3034.1,3034.0,0.4796]
[1765064449373,1.67440254,3034.1,3033.9,5.86447016]
[1765064449574,1.96790254,3034.1,3033.9,5.86447016]
[1765064450772,1.15340254,3034.6,3034.0,3.7609789]
[1765064450939,0.2799,3034.0,3033.9,0.002]
[1765064451144,0.8009,3034.0,3033.9,0.002]
[1765064451343,1.289,3034.0,3033.9,0.002]
[1765064455262,0.8009,3034.0,3033.9,0.002]
[1765064460190,1.52864025,3034.0,3033.9,0.002]
[1765064460962,1.04514025,3034.0,3033.9,0.002]
[1765064461162,0.8009,3034.0,3033.9,0.002]
[1765064462492,0.521,3034.0,3033.9,0.4797]
[1765064462864,1.15340254,3034.4,3033.9,6.82367016]
[1765064463089,1.15340254,3034.4,3034.3,6.53927016]
[1765064463294,1.15340254,3035.0,3034.3,6.53927016]
[1765064463532,1.15340254,3035.0,3034.9,6.34017016]
[1765064463788,1.67440254,3035.0,3034.9,6.34017016]
[1765064463961,1.67440254,3035.0,3034.9,6.82167016]
[1765064464566,1.67440254,3035.0,3034.9,10.11667164]
[1765064464897,2.14740254,3035.0,3034.6,6.34397016]
[1765064465200,1.15340254,3034.8,3034.7,3.2952007]
[1765064465400,1.15340254,3034.8,3034.7,9.15767086]
[1765064465617,1.15340254,3034.8,3034.7,10.11687086]
[1765064466969,1.15340254,3034.8,3034.7,6.82167016]
[1765064467158,1.15340254,3034.8,3034.7,10.11688879]
[1765064468539,0.521,3034.8,3034.7,10.11688879]
[1765064468738,0.521,3034.8,3034.3,0.1991]
[1765064468890,1.15340254,3034.4,3034.3,9.15812319]
[1765064469089,1.67440254,3034.4,3034.3,9.15812319]
[1765064469307,1.67440254,3034.4,3034.3,6.34017016]
[1765064469508,1.95260254,3034.4,3034.2,3.2957215]
[1765064469687,1.67440254,3034.4,3034.2,3.2957215]
[1765064470195,1.67440254,3034.4,3034.1,9.35741185]
[1765064470393,1.15340254,3034.2,3034.1,9.15831185]
[1765064471098,1.15340254,3034.2,3034.1,9.63601185]
[1765064471521,1.15340254,3034.2,3034.1,10.11751185]
[1765064473600,1.43160254,3034.2,3033.9,3.29804583]
[1765064473916,1.15340254,3034.0,3033.9,0.002]
[1765064474098,1.67440254,3034.0,3033.9,0.002]
[1765064474294,1.67440254,3034.0,3033.9,4.25728754]
[1765064474725,0.521,3034.0,3033.9,4.25728754]
[1765064476106,0.521,3034.2,3033.9,13.41584524]
[1765064476311,0.521,3034.2,3034.1,6.53927016]
[1765064476711,0.521,3034.2,3034.1,1.1583]
[1765064476913,0.521,3034.2,3034.1,6.34017016]
[1765064479134,0.7992,3034.2,3034.1,0.4777]
[1765064479440,1.44804025,3034.2,3033.9,0.002]
[1765064479742,1.15820254,3034.0,3033.9,0.002]
[1765064480105,1.64170254,3034.0,3033.9,0.002]
[1765064480305,1.99005707,3034.0,3033.9,0.002]
[1765064484638,1.50655707,3034.0,3033.9,0.002]
[1765064485821,1.97455707,3034.0,3033.9,0.002]
[1765064489744,1.50655707,3034.0,3033.9,0.002]
[1765064492541,1.97455707,3034.0,3033.9,0.002]
[1765064494049,1.50655707,3034.0,3033.9,0.002]
[1765064496822,1.60655707,3034.0,3033.9,0.002]
[1765064497020,2.07455707,3034.0,3033.9,0.002]
[1765064497350,1.97455707,3034.0,3033.9,0.002]
[1765064498770,1.50175707,3034.0,3033.9,0.4828]
[1765064498970,1.15340254,3034.0,3033.9,0.4828]
[1765064501679,1.67440254,3034.0,3033.9,4.26458754]
[1765064502356,0.521,3034.0,3033.9,10.13282679]
[1765064502660,1.786204,3034.0,3033.9,0.002]
[1765064505040,5.80777701,3034.0,3033.9,0.002]
[1765064505338,7.29916625,3034.0,3033.9,0.002]
[1765064505855,37.29916625,3034.0,3033.9,0.002]
[1765064506162,38.45256879,3034.0,3033.9,0.002]
[1765064507152,34.75821879,3034.0,3033.9,0.002]
[1765064507355,33.40873579,3034.0,3033.9,0.002]
[1765064507755,8.45256879,3034.0,3033.9,0.002]
[1765064508057,38.45256879,3034.0,3033.9,0.002]
[1765064510466,0.410204,3033.9,3032.5,0.002]
[1765064510664,0.82559411,3033.2,3032.5,0.002]
[1765064510831,1.64289411,3033.2,3032.5,0.002]
[1765064511161,2.12669411,3033.2,3032.5,0.002]
[1765064511364,2.16790471,3033.2,3032.5,0.002]
[1765064511562,2.3020154,3033.2,3032.5,0.002]
[1765064511725,3.13325452,3033.2,3032.5,0.002]
[1765064512432,6.43010273,3033.2,3032.5,0.002]
[1765064512632,6.38889213,3033.2,3032.5,0.002]
[1765064513651,6.38889213,3033.2,3032.6,0.4771]
[1765064513847,5.86789213,3033.2,3032.6,0.4771]
[1765064514066,6.38838294,3033.2,3032.6,0.4771]
[1765064514365,7.56033421,3033.2,3032.6,0.4771]
[1765064515034,7.03933421,3033.2,3032.6,0.4771]
[1765064515235,7.56033421,3033.2,3032.6,0.4771]
[1765064516160,6.55553421,3033.2,3032.6,0.4771]
[1765064516367,6.84500602,3033.2,3032.8,0.4771]
[1765064517762,6.43950202,3033.2,3033.1,0.4785]
[1765064518382,6.43950202,3033.2,3033.1,0.002]
[1765064519366,44.00433019,3033.2,3033.1,0.002]
[1765064519578,14.99305917,3033.2,3033.1,0.002]
[1765064520469,15.61905917,3033.2,3033.1,0.002]
[1765064520869,14.98877017,3033.2,3033.1,0.002]
[1765064521369,15.61477017,3033.2,3033.1,0.002]
[1765064521758,14.98877017,3033.2,3033.1,0.002]
[1765064522072,10.57258917,3033.2,3033.1,0.002]
[1765064522265,8.26813617,3033.2,3033.1,0.002]
[1765064522770,10.64314417,3033.2,3033.1,0.002]
[1765064523374,12.21838717,3033.2,3033.1,0.002]
[1765064524280,9.57298982,3033.2,3033.1,0.002]
[1765064524481,4.02244232,3033.2,3033.1,0.9536]
[1765064524793,0.521,3033.2,3033.1,1.1358]
[1765064526148,1.15340254,3033.3,3033.1,1.1358]
[1765064526482,0.521,3033.2,3033.1,0.4785]
[1765064526847,4.54344232,3033.2,3033.1,0.4785]